[Event "*** Titled Tuesday Blitz"]
[Site "Chess.com"]
[Date "2018.11.06"]
[Round "2"]
[White "ddtru"]
[Black "SimonKnightRivendell"]
[Result "1-0"]
[WhiteElo "2305"]
[BlackElo "1955"]
[TimeControl "180+2"]
[EndTime "13:21:43 PST"]
[Termination "ddtru won by resignation"]

1. d4 {[%clk 0:03:01.9]} 1... d5 {[%clk 0:02:59]} 2. Nf3 {[%clk 0:03:02.3]} 2...
Nf6 {[%clk 0:02:58.8]} 3. c4 {[%clk 0:03:03.1]} 3... g6 {[%clk 0:02:58]} 4. cxd5
{[%clk 0:03:01.7]} 4... Nxd5 {[%clk 0:02:58.3]} 5. e4 {[%clk 0:03:02.4]} 5...
Nb6 {[%clk 0:02:57.5]} 6. Nc3 {[%clk 0:03:03.3]} 6... Bg7 {[%clk 0:02:58.3]} 7.
Be2 {[%clk 0:03:02.4]} 7... O-O {[%clk 0:02:59]} 8. Be3 {[%clk 0:03:02.7]} 8...
Nc6 {[%clk 0:02:56.6]} 9. h3 {[%clk 0:02:59.5]} 9... e6 {[%clk 0:02:48.3]} 10.
O-O {[%clk 0:02:59.9]} 10... Ne7 {[%clk 0:02:47.8]} 11. Qd2 {[%clk 0:02:54.8]}
11... c6 {[%clk 0:02:48.1]} 12. Rad1 {[%clk 0:02:46.2]} 12... f5 {[%clk
0:02:45.3]} 13. Bh6 {[%clk 0:02:40]} 13... fxe4 {[%clk 0:02:38.4]} 14. Nxe4
{[%clk 0:02:40.6]} 14... Nf5 {[%clk 0:02:34.9]} 15. Bxg7 {[%clk 0:02:40.9]}
15... Kxg7 {[%clk 0:02:35.5]} 16. Ne5 {[%clk 0:02:34.8]} 16... Nd5 {[%clk
0:02:34.6]} 17. Bc4 {[%clk 0:01:59.2]} 17... Qh4 {[%clk 0:02:18.5]} 18. Ng5
{[%clk 0:01:33.4]} 18... Qf4 {[%clk 0:01:37.2]} 19. g3 {[%clk 0:01:17.6]} 19...
Qxd2 {[%clk 0:01:34.4]} 20. Rxd2 {[%clk 0:01:18.8]} 20... Nd6 {[%clk 0:01:26]}
21. Bb3 {[%clk 0:01:15.2]} 21... h6 {[%clk 0:01:25.9]} 22. Ngf3 {[%clk
0:01:14.6]} 22... Ne4 {[%clk 0:01:26.1]} 23. Re2 {[%clk 0:01:10.6]} 23... Nef6
{[%clk 0:01:23.2]} 24. Nh4 {[%clk 0:01:02.6]} 24... g5 {[%clk 0:01:06.4]} 25.
Ng2 {[%clk 0:01:02.8]} 25... Nd7 {[%clk 0:01:00.3]} 26. Rfe1 {[%clk 0:01:00.4]}
26... Nxe5 {[%clk 0:01:00.7]} 27. Rxe5 {[%clk 0:01:01.2]} 27... Bd7 {[%clk
0:01:01.7]} 28. h4 {[%clk 0:00:58.6]} 28... gxh4 {[%clk 0:00:58.3]} 29. Nxh4
{[%clk 0:00:58.7]} 29... Rf7 {[%clk 0:00:58.2]} 30. R1e4 {[%clk 0:00:55.9]}
30... Raf8 {[%clk 0:00:58.2]} 31. Rg4+ {[%clk 0:00:53.6]} 31... Kh7 {[%clk
0:00:58.2]} 32. Bc2+ {[%clk 0:00:53.8]} 32... Kh8 {[%clk 0:00:55.3]} 33. Ng6+
{[%clk 0:00:54]} 33... Kg7 {[%clk 0:00:56.4]} 34. Nxf8+ {[%clk 0:00:44.8]} 34...
Kxf8 {[%clk 0:00:57.1]} 35. Rg6 {[%clk 0:00:42.4]} 35... Rf6 {[%clk 0:00:53.3]}
36. Rxf6+ {[%clk 0:00:41.8]} 36... Nxf6 {[%clk 0:00:54]} 37. Bb3 {[%clk
0:00:41.5]} 37... Ke7 {[%clk 0:00:53.9]} 38. f4 {[%clk 0:00:41.1]} 38... Ng4
{[%clk 0:00:48.2]} 39. Re1 {[%clk 0:00:36.4]} 39... Kf6 {[%clk 0:00:47.1]} 40.
Kg2 {[%clk 0:00:32.3]} 40... b6 {[%clk 0:00:44.2]} 41. Kf3 {[%clk 0:00:32.3]}
41... Nh2+ {[%clk 0:00:38.8]} 42. Kg2 {[%clk 0:00:30.8]} 42... Ng4 {[%clk
0:00:38.8]} 43. Bd1 {[%clk 0:00:30.3]} 43... Kf5 {[%clk 0:00:33.2]} 44. Bxg4+
{[%clk 0:00:29.5]} 44... Kxg4 {[%clk 0:00:33]} 45. Re5 {[%clk 0:00:30]} 45... c5
{[%clk 0:00:32.9]} 46. dxc5 {[%clk 0:00:30.3]} 46... Bc6+ {[%clk 0:00:33.7]} 47.
Kf2 {[%clk 0:00:30.7]} 47... bxc5 {[%clk 0:00:34.6]} 48. Rxe6 {[%clk 0:00:29.3]}
48... Bd5 {[%clk 0:00:34.4]} 49. Rxh6 {[%clk 0:00:29.2]} 49... Bxa2 {[%clk
0:00:34.8]} 50. Ra6 {[%clk 0:00:29.6]} 50... Bd5 {[%clk 0:00:34.4]} 51. Rxa7
{[%clk 0:00:29.6]} 51... c4 {[%clk 0:00:34.5]} 52. Rc7 {[%clk 0:00:30.3]} 52...
Kf5 {[%clk 0:00:34]} 53. Rc5 {[%clk 0:00:31.2]} 53... Ke4 {[%clk 0:00:34.6]} 54.
Rxd5 {[%clk 0:00:30.8]} 54... Kxd5 {[%clk 0:00:35.4]} 55. Ke3 {[%clk 0:00:32]}
1-0

[Event "*** Titled Tuesday Blitz"]
[Site "Chess.com"]
[Date "2018.11.06"]
[Round "2"]
[White "PelinGorki"]
[Black "Annawel"]
[Result "1/2-1/2"]
[WhiteElo "2614"]
[BlackElo "2898"]
[TimeControl "180+2"]
[EndTime "13:21:48 PST"]
[Termination "Game drawn by repetition"]

1. e4 {[%clk 0:03:01.9]} 1... d6 {[%clk 0:03:00.6]} 2. Nc3 {[%clk 0:03:02.7]}
2... Nf6 {[%clk 0:03:02.3]} 3. d4 {[%clk 0:03:02.9]} 3... g6 {[%clk 0:03:03.6]}
4. Be3 {[%clk 0:03:03.1]} 4... c6 {[%clk 0:03:03.6]} 5. Qd2 {[%clk 0:03:04.4]}
5... Nbd7 {[%clk 0:03:04.8]} 6. O-O-O {[%clk 0:03:03.7]} 6... e5 {[%clk
0:03:03.1]} 7. h3 {[%clk 0:03:02.2]} 7... b5 {[%clk 0:02:56.9]} 8. a3 {[%clk
0:02:59.1]} 8... Qc7 {[%clk 0:02:51.9]} 9. g4 {[%clk 0:02:58.9]} 9... a5 {[%clk
0:02:48.2]} 10. g5 {[%clk 0:02:53.7]} 10... Nh5 {[%clk 0:02:33.8]} 11. Be2
{[%clk 0:02:54.6]} 11... b4 {[%clk 0:02:33.9]} 12. Nb1 {[%clk 0:02:55.2]} 12...
Bg7 {[%clk 0:02:13.9]} 13. Bxh5 {[%clk 0:02:45.4]} 13... gxh5 {[%clk 0:02:15.8]}
14. Nf3 {[%clk 0:02:44.4]} 14... Rb8 {[%clk 0:02:10.8]} 15. Nh4 {[%clk
0:02:41.6]} 15... Nb6 {[%clk 0:02:08.4]} 16. b3 {[%clk 0:02:17.6]} 16... bxa3
{[%clk 0:02:06.4]} 17. Nxa3 {[%clk 0:02:16.1]} 17... a4 {[%clk 0:02:07.8]} 18.
dxe5 {[%clk 0:02:09.9]} 18... dxe5 {[%clk 0:01:49.4]} 19. Bc5 {[%clk 0:01:54.4]}
19... Bf8 {[%clk 0:01:46.1]} 20. Bxf8 {[%clk 0:01:47.3]} 20... Rxf8 {[%clk
0:01:48]} 21. Qd6 {[%clk 0:01:46.9]} 21... Qxd6 {[%clk 0:01:43.7]} 22. Rxd6
{[%clk 0:01:48.8]} 22... axb3 {[%clk 0:01:43.5]} 23. cxb3 {[%clk 0:01:46.9]}
23... Be6 {[%clk 0:01:31.3]} 24. Rxc6 {[%clk 0:01:15.4]} 24... Kd7 {[%clk
0:01:28.1]} 25. Rc3 {[%clk 0:01:13.4]} 25... Rfc8 {[%clk 0:01:28.3]} 26. Rd1+
{[%clk 0:01:12.3]} 26... Ke8 {[%clk 0:01:28.9]} 27. Rd3 {[%clk 0:00:53]} 27...
Nd7 {[%clk 0:01:27.8]} 28. Nc4 {[%clk 0:00:51.7]} 28... Kf8 {[%clk 0:01:20.8]}
29. Nd6 {[%clk 0:00:46.2]} 29... Rxc3+ {[%clk 0:01:21.6]} 30. Rxc3 {[%clk
0:00:48.1]} 30... Bxb3 {[%clk 0:01:13.4]} 31. Nhf5 {[%clk 0:00:47.1]} 31... Be6
{[%clk 0:01:14.2]} 32. h4 {[%clk 0:00:40.5]} 32... Ra8 {[%clk 0:01:08]} 33. Kd2
{[%clk 0:00:39.6]} 33... Nb6 {[%clk 0:01:08.1]} 34. f3 {[%clk 0:00:37.7]} 34...
Rd8 {[%clk 0:01:08.6]} 35. Ke2 {[%clk 0:00:36.6]} 35... Kg8 {[%clk 0:01:01.8]}
36. Nh6+ {[%clk 0:00:31.8]} 36... Kf8 {[%clk 0:01:02.6]} 37. Nhf5 {[%clk
0:00:31.2]} 37... Ra8 {[%clk 0:01:03.3]} 38. Ng3 {[%clk 0:00:28]} 38... Ra2+
{[%clk 0:01:02.5]} 39. Kd3 {[%clk 0:00:29.4]} 39... Na4 {[%clk 0:01:01]} 40. Rc2
{[%clk 0:00:27.8]} 40... Ra3+ {[%clk 0:01:00.6]} 41. Ke2 {[%clk 0:00:29.2]}
41... Ke7 {[%clk 0:00:56.1]} 42. Ndf5+ {[%clk 0:00:27.4]} 42... Kd8 {[%clk
0:00:46.7]} 43. Nxh5 {[%clk 0:00:26.1]} 43... Nc3+ {[%clk 0:00:44.2]} 44. Kf2
{[%clk 0:00:24.1]} 44... Nd1+ {[%clk 0:00:44.8]} 45. Kg2 {[%clk 0:00:22.4]}
45... Bxf5 {[%clk 0:00:44.6]} 46. Rd2+ {[%clk 0:00:23.8]} 46... Ke7 {[%clk
0:00:45.6]} 47. Rxd1 {[%clk 0:00:24.2]} 47... Be6 {[%clk 0:00:45]} 48. Ng3
{[%clk 0:00:23.4]} 48... Ra2+ {[%clk 0:00:45.3]} 49. Kh1 {[%clk 0:00:17.8]}
49... Ra3 {[%clk 0:00:44.7]} 50. Kg2 {[%clk 0:00:18.3]} 50... Ra2+ {[%clk
0:00:45.7]} 51. Kh1 {[%clk 0:00:12.1]} 51... Ra3 {[%clk 0:00:46.7]} 52. Kg2
{[%clk 0:00:13.1]} 52... Ra2+ {[%clk 0:00:48.2]} 1/2-1/2

[Event "*** Titled Tuesday Blitz"]
[Site "Chess.com"]
[Date "2018.11.06"]
[Round "2"]
[White "ZeroRealtorFade"]
[Black "AndrewMcStone"]
[Result "0-1"]
[WhiteElo "2214"]
[BlackElo "2136"]
[TimeControl "180+2"]
[EndTime "13:21:53 PST"]
[Termination "AndrewMcStone won by resignation"]

1. d4 {[%clk 0:03:00.3]} 1... Nf6 {[%clk 0:03:00.3]} 2. Bf4 {[%clk 0:03:01.4]}
2... g6 {[%clk 0:02:59.3]} 3. e3 {[%clk 0:03:02.6]} 3... Bg7 {[%clk 0:03:00.7]}
4. c3 {[%clk 0:03:03.9]} 4... O-O {[%clk 0:03:01.2]} 5. Nd2 {[%clk 0:03:04]}
5... d6 {[%clk 0:03:01.5]} 6. h3 {[%clk 0:03:04.8]} 6... c5 {[%clk 0:03:02.7]}
7. Ngf3 {[%clk 0:03:05.6]} 7... Be6 {[%clk 0:02:52.5]} 8. Bd3 {[%clk 0:03:01.9]}
8... Qb6 {[%clk 0:02:48.5]} 9. Qc2 {[%clk 0:02:57.2]} 9... cxd4 {[%clk
0:02:38.2]} 10. Nxd4 {[%clk 0:02:44.5]} 10... Bd7 {[%clk 0:02:23.6]} 11. Bh2
{[%clk 0:02:43.4]} 11... e5 {[%clk 0:02:01.1]} 12. Ne2 {[%clk 0:02:33.6]} 12...
Nc6 {[%clk 0:01:57.5]} 13. Nc4 {[%clk 0:02:16.7]} 13... Qc7 {[%clk 0:01:57.4]}
14. e4 {[%clk 0:02:12.2]} 14... d5 {[%clk 0:01:48.9]} 15. exd5 {[%clk
0:01:58.4]} 15... Nxd5 {[%clk 0:01:50.8]} 16. O-O {[%clk 0:01:53.5]} 16... Rad8
{[%clk 0:01:44.1]} 17. Rfe1 {[%clk 0:01:35]} 17... Be6 {[%clk 0:00:57.9]} 18.
Rad1 {[%clk 0:01:18.6]} 18... b5 {[%clk 0:00:45.7]} 19. Nd2 {[%clk 0:01:11.9]}
19... b4 {[%clk 0:00:19.5]} 20. Nf3 {[%clk 0:00:44.8]} 20... bxc3 {[%clk
0:00:18.5]} 21. bxc3 {[%clk 0:00:39.1]} 21... Nf4 {[%clk 0:00:16.7]} 22. Nxf4
{[%clk 0:00:13.5]} 22... exf4 {[%clk 0:00:18.6]} 23. Ng5 {[%clk 0:00:12.3]}
23... Bd5 {[%clk 0:00:09.1]} 24. Qc1 {[%clk 0:00:10.3]} 24... Rfe8 {[%clk
0:00:05.3]} 25. Bxf4 {[%clk 0:00:10.5]} 25... Qb7 {[%clk 0:00:04.8]} 26. Rxe8+
{[%clk 0:00:10.8]} 26... Rxe8 {[%clk 0:00:05.8]} 27. Re1 {[%clk 0:00:09.7]}
27... Rd8 {[%clk 0:00:05.7]} 28. Be4 {[%clk 0:00:08.2]} 28... Bxe4 {[%clk
0:00:06.2]} 29. Nxe4 {[%clk 0:00:08.9]} 29... Na5 {[%clk 0:00:06.3]} 30. Nd6
{[%clk 0:00:07.7]} 30... Qc6 {[%clk 0:00:05.1]} 31. Qa3 {[%clk 0:00:07.8]} 31...
Nc4 {[%clk 0:00:03.2]} 32. Nxc4 {[%clk 0:00:07.9]} 32... Qxc4 {[%clk 0:00:05.1]}
33. Qe7 {[%clk 0:00:08]} 33... Rf8 {[%clk 0:00:04.9]} 34. g3 {[%clk 0:00:04.7]}
34... Qxc3 {[%clk 0:00:05.4]} 35. Be5 {[%clk 0:00:04.8]} 35... Qxe1+ {[%clk
0:00:05.6]} 36. Kg2 {[%clk 0:00:05.5]} 36... Qxe5 {[%clk 0:00:07.1]} 37. Qa3
{[%clk 0:00:06.6]} 37... Qd5+ {[%clk 0:00:07.9]} 38. Kh2 {[%clk 0:00:07.1]}
38... a5 {[%clk 0:00:09.5]} 39. Qe3 {[%clk 0:00:07.6]} 39... Rd8 {[%clk
0:00:10.4]} 40. h4 {[%clk 0:00:08.7]} 40... Qd4 {[%clk 0:00:09.7]} 41. Qg5
{[%clk 0:00:09.6]} 41... Qxf2+ {[%clk 0:00:10.2]} 42. Kh3 {[%clk 0:00:10.5]}
42... Qf5+ {[%clk 0:00:11.1]} 43. Qxf5 {[%clk 0:00:11.1]} 43... gxf5 {[%clk
0:00:13]} 0-1

[Event "*** Titled Tuesday Blitz"]
[Site "Chess.com"]
[Date "2018.11.06"]
[Round "2"]
[White "florianschwabeneder"]
[Black "Keaton87"]
[Result "1-0"]
[WhiteElo "2490"]
[BlackElo "2466"]
[TimeControl "180+2"]
[EndTime "13:21:54 PST"]
[Termination "florianschwabeneder won by checkmate"]

1. e4 {[%clk 0:03:01.9]} 1... c5 {[%clk 0:03:00.6]} 2. Nf3 {[%clk 0:03:02.7]}
2... e6 {[%clk 0:03:02]} 3. b3 {[%clk 0:03:02.9]} 3... d5 {[%clk 0:02:59.5]} 4.
exd5 {[%clk 0:02:58.1]} 4... exd5 {[%clk 0:03:01.4]} 5. Bb5+ {[%clk 0:02:56.3]}
5... Bd7 {[%clk 0:03:01.9]} 6. Bxd7+ {[%clk 0:02:54]} 6... Nxd7 {[%clk
0:03:02.7]} 7. O-O {[%clk 0:02:55.3]} 7... Ngf6 {[%clk 0:03:02.7]} 8. Re1+
{[%clk 0:02:49.7]} 8... Be7 {[%clk 0:03:03.7]} 9. Qe2 {[%clk 0:02:49.9]} 9...
Kf8 {[%clk 0:02:44.3]} 10. d4 {[%clk 0:02:44.6]} 10... b6 {[%clk 0:02:37.5]} 11.
Bb2 {[%clk 0:02:40.4]} 11... Bd6 {[%clk 0:02:37.4]} 12. Nbd2 {[%clk 0:02:38.9]}
12... Qc7 {[%clk 0:02:34]} 13. c4 {[%clk 0:02:37]} 13... h6 {[%clk 0:02:20.4]}
14. dxc5 {[%clk 0:02:31.7]} 14... Nxc5 {[%clk 0:02:14.4]} 15. Bxf6 {[%clk
0:02:27.4]} 15... gxf6 {[%clk 0:02:13.9]} 16. cxd5 {[%clk 0:02:28.1]} 16... Kg7
{[%clk 0:02:12.3]} 17. Qc4 {[%clk 0:02:19.3]} 17... h5 {[%clk 0:02:08.3]} 18.
Rac1 {[%clk 0:02:12.4]} 18... Rac8 {[%clk 0:02:02.3]} 19. g3 {[%clk 0:02:01.1]}
19... Nd7 {[%clk 0:02:01.3]} 20. Qf1 {[%clk 0:01:53.3]} 20... Qb8 {[%clk
0:01:56.2]} 21. Nd4 {[%clk 0:01:41.1]} 21... Ne5 {[%clk 0:01:45]} 22. Nf5+
{[%clk 0:01:37.9]} 22... Kg6 {[%clk 0:01:46.3]} 23. Nh4+ {[%clk 0:01:31.8]}
23... Kg7 {[%clk 0:01:39.8]} 24. f4 {[%clk 0:01:30.3]} 24... Ng4 {[%clk
0:01:36.3]} 25. Nf5+ {[%clk 0:01:30]} 25... Kh7 {[%clk 0:01:27.5]} 26. Qd3
{[%clk 0:01:28.8]} 26... Bc5+ {[%clk 0:01:16.3]} 27. Kg2 {[%clk 0:01:29]} 27...
Nf2 {[%clk 0:01:17]} 28. Qb1 {[%clk 0:01:20.1]} 28... Ng4 {[%clk 0:01:02]} 29.
Ne7+ {[%clk 0:01:09.7]} 29... Kg7 {[%clk 0:01:02.7]} 30. Nxc8 {[%clk 0:01:07.3]}
30... Rxc8 {[%clk 0:01:04]} 31. Ne4 {[%clk 0:01:05.9]} 31... Qb7 {[%clk
0:00:59.3]} 32. Qd3 {[%clk 0:01:00.3]} 32... Rd8 {[%clk 0:00:55.7]} 33. Rcd1
{[%clk 0:00:56.4]} 33... Bb4 {[%clk 0:00:53.5]} 34. Re2 {[%clk 0:00:56.2]} 34...
Bc5 {[%clk 0:00:32.3]} 35. h3 {[%clk 0:00:48.2]} 35... Nh6 {[%clk 0:00:33]} 36.
Kh2 {[%clk 0:00:48.6]} 36... Ng8 {[%clk 0:00:33]} 37. Nxc5 {[%clk 0:00:47.8]}
37... bxc5 {[%clk 0:00:34]} 38. Qf5 {[%clk 0:00:47.3]} 38... Qa6 {[%clk
0:00:28.8]} 39. Rdd2 {[%clk 0:00:46.3]} 39... c4 {[%clk 0:00:27.5]} 40. bxc4
{[%clk 0:00:46]} 40... Qxc4 {[%clk 0:00:29.4]} 41. Qxh5 {[%clk 0:00:45.6]} 41...
Qc3 {[%clk 0:00:25.5]} 42. Qg4+ {[%clk 0:00:45.1]} 42... Kf8 {[%clk 0:00:25.9]}
43. d6 {[%clk 0:00:44.9]} 43... Nh6 {[%clk 0:00:25.7]} 44. Qh5 {[%clk
0:00:43.4]} 44... Kg7 {[%clk 0:00:24.8]} 45. Qd5 {[%clk 0:00:41.6]} 45... Rd7
{[%clk 0:00:16.6]} 46. Re7 {[%clk 0:00:37]} 46... Rd8 {[%clk 0:00:14.1]} 47. d7
{[%clk 0:00:36.3]} 47... Nf5 {[%clk 0:00:11.5]} 48. Qxf7+ {[%clk 0:00:19.4]}
48... Kh6 {[%clk 0:00:12.6]} 49. Qh7# {[%clk 0:00:19.4]} 1-0

[Event "*** Titled Tuesday Blitz"]
[Site "Chess.com"]
[Date "2018.11.06"]
[Round "2"]
[White "RichardLeyvaP"]
[Black "santosalberto1987"]
[Result "1-0"]
[WhiteElo "2456"]
[BlackElo "2394"]
[TimeControl "180+2"]
[EndTime "13:21:54 PST"]
[Termination "RichardLeyvaP won by resignation"]

1. e4 {[%clk 0:03:01.9]} 1... e6 {[%clk 0:03:00.8]} 2. d4 {[%clk 0:03:01.7]}
2... d5 {[%clk 0:03:02.5]} 3. Nc3 {[%clk 0:03:02.9]} 3... Nf6 {[%clk 0:03:03.7]}
4. Bg5 {[%clk 0:03:03.4]} 4... Bb4 {[%clk 0:03:04.1]} 5. e5 {[%clk 0:02:52.7]}
5... h6 {[%clk 0:03:05.5]} 6. Bd2 {[%clk 0:02:53.6]} 6... Bxc3 {[%clk
0:03:06.9]} 7. bxc3 {[%clk 0:02:55.5]} 7... Ne4 {[%clk 0:03:08.3]} 8. Qg4 {[%clk
0:02:56.8]} 8... Kf8 {[%clk 0:03:08.8]} 9. Bd3 {[%clk 0:02:37]} 9... Nxd2 {[%clk
0:03:10.1]} 10. Kxd2 {[%clk 0:02:38.3]} 10... c5 {[%clk 0:03:11.7]} 11. h4
{[%clk 0:02:33.6]} 11... Nc6 {[%clk 0:03:12.2]} 12. Nf3 {[%clk 0:02:24.5]} 12...
c4 {[%clk 0:03:10]} 13. Be2 {[%clk 0:02:20.5]} 13... Bd7 {[%clk 0:03:11.3]} 14.
a4 {[%clk 0:01:55.3]} 14... a6 {[%clk 0:03:08.7]} 15. Rhb1 {[%clk 0:01:46.2]}
15... Rb8 {[%clk 0:03:09.3]} 16. h5 {[%clk 0:01:47.2]} 16... b5 {[%clk
0:03:08.4]} 17. axb5 {[%clk 0:01:37]} 17... axb5 {[%clk 0:03:09.9]} 18. Qf4
{[%clk 0:01:28.6]} 18... Qe7 {[%clk 0:02:45.1]} 19. Ke1 {[%clk 0:01:29]} 19...
b4 {[%clk 0:02:38.5]} 20. cxb4 {[%clk 0:01:23.4]} 20... Rxb4 {[%clk 0:02:40]}
21. Ra8+ {[%clk 0:01:20.2]} 21... Be8 {[%clk 0:02:41.4]} 22. Rba1 {[%clk
0:01:07.3]} 22... Qb7 {[%clk 0:02:33]} 23. Qc1 {[%clk 0:01:07.2]} 23... Ke7
{[%clk 0:02:25.7]} 24. Qa3 {[%clk 0:00:45.7]} 24... Kd7 {[%clk 0:01:56.9]} 25.
c3 {[%clk 0:00:46]} 25... Rb1+ {[%clk 0:01:56.6]} 26. Bd1 {[%clk 0:00:33.9]}
26... Nb8 {[%clk 0:01:20.3]} 27. Ra7 {[%clk 0:00:33.8]} 27... Kc8 {[%clk
0:01:17.6]} 28. Rxb7 {[%clk 0:00:34.1]} 28... Rxb7 {[%clk 0:01:18.9]} 29. Qc5+
{[%clk 0:00:31.8]} 29... Rc7 {[%clk 0:01:17.1]} 30. Qb4 {[%clk 0:00:32.2]} 30...
Rb7 {[%clk 0:01:17.6]} 31. Qa3 {[%clk 0:00:32.9]} 31... Bc6 {[%clk 0:01:16.9]}
32. g4 {[%clk 0:00:29]} 32... Rd8 {[%clk 0:01:15.4]} 33. Kf1 {[%clk 0:00:29.9]}
33... Rb6 {[%clk 0:01:08.2]} 34. Kg2 {[%clk 0:00:29.8]} 34... Rb7 {[%clk
0:01:03.8]} 35. Qc1 {[%clk 0:00:30.1]} 35... Nd7 {[%clk 0:01:01.8]} 36. g5
{[%clk 0:00:30.7]} 36... Rh8 {[%clk 0:01:00.6]} 37. Qf4 {[%clk 0:00:30.5]} 37...
Nb8 {[%clk 0:00:59.9]} 38. Ba4 {[%clk 0:00:30.9]} 38... Bxa4 {[%clk 0:00:59]}
39. Rxa4 {[%clk 0:00:31.4]} 39... Kd8 {[%clk 0:00:56.7]} 40. Ra8 {[%clk
0:00:31.3]} 40... Kc8 {[%clk 0:00:55.8]} 41. g6 {[%clk 0:00:30.6]} 41... fxg6
{[%clk 0:00:56.4]} 42. hxg6 {[%clk 0:00:32.5]} 42... Re7 {[%clk 0:00:44.7]} 43.
Nd2 {[%clk 0:00:33.3]} 43... Rd7 {[%clk 0:00:43.1]} 44. Nf1 {[%clk 0:00:33.6]}
44... Re7 {[%clk 0:00:44.1]} 45. Ng3 {[%clk 0:00:30.6]} 45... Kb7 {[%clk
0:00:45]} 46. Ra1 {[%clk 0:00:30.4]} 46... Nc6 {[%clk 0:00:46.1]} 47. Qc1 {[%clk
0:00:29.4]} 47... Nb8 {[%clk 0:00:44.8]} 48. Qb2+ {[%clk 0:00:28.4]} 48... Kc8
{[%clk 0:00:46.4]} 49. Ra8 {[%clk 0:00:29.5]} 49... Rb7 {[%clk 0:00:45.7]} 50.
Qa3 {[%clk 0:00:30.7]} 50... Rd8 {[%clk 0:00:45.3]} 51. Nh5 {[%clk 0:00:30.4]}
51... Rdd7 {[%clk 0:00:42.2]} 52. Nxg7 {[%clk 0:00:27.1]} 52... Rxg7 {[%clk
0:00:42.1]} 53. Qf8+ {[%clk 0:00:27.6]} 53... Kc7 {[%clk 0:00:40.7]} 54. Qxg7+
{[%clk 0:00:28.8]} 54... Kb6 {[%clk 0:00:42.2]} 55. Qxb7+ {[%clk 0:00:29.8]}
55... Kxb7 {[%clk 0:00:42.7]} 56. Rxb8+ {[%clk 0:00:31]} 1-0

[Event "*** Titled Tuesday Blitz"]
[Site "Chess.com"]
[Date "2018.11.06"]
[Round "2"]
[White "Korchmar_Vasiliy"]
[Black "Alex_Banzea"]
[Result "1-0"]
[WhiteElo "2696"]
[BlackElo "2305"]
[TimeControl "180+2"]
[EndTime "13:21:55 PST"]
[Termination "Korchmar_Vasiliy won by resignation"]

1. d4 {[%clk 0:03:01.6]} 1... Nf6 {[%clk 0:02:45.5]} 2. Nf3 {[%clk 0:03:03.1]}
2... e6 {[%clk 0:02:45.3]} 3. Bf4 {[%clk 0:03:04.2]} 3... d5 {[%clk 0:02:45.5]}
4. e3 {[%clk 0:03:05.1]} 4... c5 {[%clk 0:02:47]} 5. Nbd2 {[%clk 0:03:05.6]}
5... Nc6 {[%clk 0:02:48.4]} 6. c3 {[%clk 0:03:06.9]} 6... cxd4 {[%clk
0:02:49.7]} 7. exd4 {[%clk 0:03:07.8]} 7... Nh5 {[%clk 0:02:51.3]} 8. Bg3 {[%clk
0:03:00.8]} 8... Be7 {[%clk 0:02:44]} 9. Bd3 {[%clk 0:03:00.8]} 9... O-O {[%clk
0:02:39.4]} 10. O-O {[%clk 0:03:01.9]} 10... Nxg3 {[%clk 0:02:36.3]} 11. hxg3
{[%clk 0:03:02.6]} 11... f6 {[%clk 0:02:35.5]} 12. Re1 {[%clk 0:03:03.4]} 12...
Bd6 {[%clk 0:02:35.5]} 13. c4 {[%clk 0:02:59]} 13... Ne7 {[%clk 0:02:27.7]} 14.
Qc2 {[%clk 0:02:54.9]} 14... g6 {[%clk 0:02:28.2]} 15. c5 {[%clk 0:02:51.9]}
15... Bc7 {[%clk 0:02:28.5]} 16. b4 {[%clk 0:02:52]} 16... Kg7 {[%clk
0:02:29.5]} 17. Re2 {[%clk 0:02:49]} 17... Nc6 {[%clk 0:02:30.5]} 18. Qb2 {[%clk
0:02:39.4]} 18... e5 {[%clk 0:02:26.6]} 19. b5 {[%clk 0:02:33.1]} 19... Nxd4
{[%clk 0:02:22.7]} 20. Nxd4 {[%clk 0:02:33.4]} 20... exd4 {[%clk 0:02:24.6]} 21.
Rae1 {[%clk 0:02:18.8]} 21... Bg4 {[%clk 0:02:15.2]} 22. f3 {[%clk 0:02:16.4]}
22... Bd7 {[%clk 0:02:10.8]} 23. Kf2 {[%clk 0:01:48.7]} 23... Qb8 {[%clk
0:00:56.1]} 24. f4 {[%clk 0:01:49.8]} 24... Bg4 {[%clk 0:00:54.9]} 25. Re7+
{[%clk 0:01:45.3]} 25... Rf7 {[%clk 0:00:54.6]} 26. Qxd4 {[%clk 0:01:47.2]}
26... Qd8 {[%clk 0:00:49]} 27. Rxf7+ {[%clk 0:01:16.9]} 27... Kxf7 {[%clk
0:00:50.9]} 28. Nf1 {[%clk 0:01:18.4]} 28... b6 {[%clk 0:00:43.9]} 29. c6 {[%clk
0:01:11.5]} 29... Be6 {[%clk 0:00:39]} 30. Ne3 {[%clk 0:00:55.5]} 30... Bd6
{[%clk 0:00:39.8]} 31. Kf1 {[%clk 0:00:36.9]} 31... Bc5 {[%clk 0:00:39.6]} 32.
Qb2 {[%clk 0:00:38.4]} 32... d4 {[%clk 0:00:21.6]} 33. Nc4 {[%clk 0:00:38.3]}
33... Qd5 {[%clk 0:00:22.9]} 34. Nd2 {[%clk 0:00:29.5]} 34... Qxa2 {[%clk
0:00:22.6]} 35. Qc1 {[%clk 0:00:22.6]} 35... Ba3 {[%clk 0:00:16.2]} 36. Qd1
{[%clk 0:00:20.7]} 36... Bb4 {[%clk 0:00:16.5]} 37. Rxe6 {[%clk 0:00:13.4]}
37... Qxd2 {[%clk 0:00:16.9]} 38. Qxd2 {[%clk 0:00:13.1]} 38... Bxd2 {[%clk
0:00:18.8]} 39. Bc4 {[%clk 0:00:14]} 39... Kg7 {[%clk 0:00:19.3]} 40. Re7+
{[%clk 0:00:13.4]} 40... Kh6 {[%clk 0:00:20.7]} 41. Be6 {[%clk 0:00:09.9]} 41...
Bb4 {[%clk 0:00:17.8]} 42. Rd7 {[%clk 0:00:11.1]} 42... d3 {[%clk 0:00:18.7]}
43. Rxd3 {[%clk 0:00:10.2]} 43... Re8 {[%clk 0:00:19.8]} 44. c7 {[%clk
0:00:09.6]} 44... Rxe6 {[%clk 0:00:15.6]} 45. c8=Q {[%clk 0:00:10.7]} 45... Re1+
{[%clk 0:00:17]} 46. Kf2 {[%clk 0:00:12.2]} 46... Ra1 {[%clk 0:00:17.3]} 47.
Qh3+ {[%clk 0:00:13.2]} 47... Kg7 {[%clk 0:00:18.2]} 48. Rd7+ {[%clk 0:00:14.9]}
48... Kf8 {[%clk 0:00:19.8]} 1-0